fUSD/lending_fUSD_20250331
["ID","MTS","AMOUNT","RATE_DAILY","PERIOD"]
[356911679,1743423040011,-300.0,0.00047999,30]
[356911680,1743423040023,-212.66443433,0.00047999,120]
[356911681,1743423040033,-2119.82182175,0.00048,41]
[356911682,1743423040044,-106364.5254388,0.00048,2]
[356911683,1743423040055,-18596.41333383,0.00048,2]
[356911684,1743423040068,-69103.22081542,0.00048,2]
[356911685,1743423040080,-210098.0948464,0.00048,2]
[356911686,1743423040091,-3770.251875,0.00048,2]
[356911687,1743423040103,-6829.22131732,0.00048,2]
[356911688,1743423040116,-1091.74283861,0.00048,2]
[356911689,1743423040185,-435.22115147,0.00048,2]
[356911690,1743423040198,-213283.27600453,0.00048,2]
[356911691,1743423040241,-648.02351071,0.00048,2]
[356911692,1743423040296,-463.54474078,0.00048,2]
[356911720,1743423042713,-803.46628385,0.00047526,7]
[356911721,1743423042725,-9098.44577149,0.00047526,7]
[356911722,1743423042873,-3318.26,0.00047526,7]
[356911723,1743423042885,-252.58751994,0.00047526,7]
[356911832,1743423044265,-611.03624955,0.00047526,7]
[356911879,1743423045715,-318.3799914,0.00047526,7]
[356911880,1743423045822,-823.8,0.00047526,7]
[356911881,1743423045877,-1041.98334023,0.00047526,7]
[356911882,1743423045889,-809.4169441,0.00047526,7]
[356911891,1743423239658,153.99,0.00013699,2]
[356911894,1743423843199,-150.0,0.00026849,2]
[356911895,1743423911793,-165.4740612,0.00015,2]
[356911896,1743423920023,764.89365531,9e-05,2]
[356911897,1743423920055,452.86030998,9e-05,2]
[356911898,1743423937055,4773.57597127,8e-05,2]
[356911899,1743423937083,4898.4835685,8e-05,2]
[356911900,1743423937127,999.13673257,8e-05,2]
[356911901,1743423937153,500.0,8e-05,2]
[356911902,1743423937175,500.0,8e-05,2]
[356911903,1743423937197,500.0,8e-05,2]
[356911904,1743423937219,1228.4256872,8e-05,2]
[356911905,1743423962575,-165.474061,0.00014925,2]
[356911906,1743423962600,-53.595939,0.00014999,2]
[356911907,1743423963330,7299.96573875,8e-05,2]
[356911908,1743424042084,250.12541402,0.000101,2]
[356911909,1743424048769,320.80760272,0.0001,2]
[356911910,1743424077655,900.67555731,0.0001,2]
[356911911,1743424077676,10000.0,0.0001,2]
[356911912,1743424077704,2533.4799863,0.0001,2]
[356911913,1743424092376,7466.5200137,9e-05,2]
[356911914,1743424092398,10000.0,9e-05,2]
[356911915,1743424092420,10000.0,9e-05,2]
[356911916,1743424092442,10000.0,9e-05,2]
[356911917,1743424092464,1317.13839694,9e-05,2]
[356911920,1743424197684,-844.20850741,0.000149,2]
[356911922,1743424197711,-844.20850742,0.000149,2]
[356911923,1743424197738,-500.0,0.00014973,2]
[356911925,1743424197766,-502.12034144,0.00014973,2]
[356911926,1743424197793,-183.14696659,0.00014999,2]
[356911927,1743424197820,-150.0,0.00014999,2]
[356911928,1743424197846,-316.01466578,0.00014999,2]
[356911929,1743424197873,-693.62609183,0.00014999,2]
[356911930,1743424197902,-79.19069583,0.00015,2]
[356911935,1743424231723,-300.0,0.00014999,2]
[356911937,1743424231732,-150.0,0.00014999,2]
[356911938,1743424231742,-8561.64891012,0.00015,2]
[356911939,1743424231778,-274779.72707163,0.00015,2]
[356911940,1743424231789,-899.55707564,0.00015,2]
[356912089,1743424237679,-741.396018,0.00015,2]
[356912092,1743424238326,-151.16351891,0.00015,2]
[356912096,1743424239892,-3006.71899137,0.00015,2]
[356912097,1743424239904,-727.36724171,0.00015,2]
[356912098,1743424239919,-4487.86932066,0.00015,2]
[356912099,1743424240001,-10302.62180785,0.00015,2]
[356912100,1743424240013,-1121.49476866,0.00015,2]
[356912101,1743424240025,-4583.51336852,0.00015,2]
[356912102,1743424240037,-1864.36628569,0.00015,2]
[356912103,1743424240049,-496.08226607,0.00015,2]
[356912104,1743424240060,-747.77835659,0.00015,2]
[356912105,1743424240072,-827.01757752,0.00015,2]
[356912106,1743424240195,-0.00297131,0.00015,2]
[356912107,1743424240207,-413.6448618,0.00015,2]
[356912108,1743424240229,-1230.9102667,0.00015,2]
[356912119,1743424242965,-353355.10441783,0.00015,2]
[356912127,1743424244346,-1693.247,0.00015,2]
[356912131,1743424245935,-8068.83552163,0.00015,2]
[356912132,1743424245949,-149126.24223972,0.00015,2]
[356912133,1743424245963,-202032.97604255,0.00015,2]
[356912134,1743424245976,-56979.91264413,0.00015,2]
[356912135,1743424245988,-45707.421,0.00015,2]
[356912136,1743424246001,-27657.16378,0.00015,2]
[356912137,1743424246014,-20590.70074111,0.00015,2]
[356912141,1743424563382,-150.0,0.0001499,2]
[356912142,1743424710230,307.14427902,0.000147,2]
[356912143,1743424710260,563.12572098,0.000147,2]
[356912144,1743424776535,-152.91151117,0.00014962,2]
[356912145,1743424787203,-21.83099546,0.00014962,2]
[356912146,1743424787230,-128.16900454,0.00014962,2]
[356912147,1743424805437,-150.0,0.00014962,2]
[356912148,1743424852968,-151.94441106,0.00014962,2]
[356912149,1743424990793,1101.21422058,0.00014862,2]
[356912150,1743424991455,-150.0,0.00014862,2]
[356912151,1743425004400,-188.18159935,0.00014862,2]
[356912152,1743425008022,-434.13930065,0.00014862,2]
[356912153,1743425042071,350.0,0.00014874,12]
[356912154,1743425067208,829.204122,0.00014787,2]
[356912155,1743425101793,-152.35,0.00014862,2]
[356912156,1743425103149,150.0,0.000148,2]
[356912157,1743425212233,-35.83159935,0.00014862,2]
[356912158,1743425212256,-118.12656881,0.00014876,2]
[356912162,1743425322072,237.04774288,0.00014819,2]
[356912165,1743425330944,188.18159935,0.00014819,2]
[356912166,1743425348266,-622.3209,0.000149,2]
[356912167,1743425348298,-1358.4615,0.000149,2]
[356912168,1743425348327,-150.0,0.00014919,2]
[356912169,1743425348355,-150.0,0.00014955,2]
[356912170,1743425348384,-640.88657215,0.00014962,2]
[356912171,1743425348412,-1835.02735856,0.0001499,2]
[356912172,1743425348440,-150.0,0.00014999,2]
[356912173,1743425348468,-302.91151117,0.00014999,2]
[356912174,1743425348496,-150.0,0.00014999,2]
[356912175,1743425348523,-150.0,0.00014999,2]
[356912176,1743425348554,-4519.52232878,0.00015,2]
[356912177,1743425348608,-10029.13017066,0.00015,2]
[356912178,1743425348647,-703.05290534,0.00015,2]
[356912179,1743425354373,-693285.0,0.00015,2]
[356912180,1743425403077,150.0,0.000148,2]
[356912185,1743425431959,-4045.90799304,0.00015,2]
[356912186,1743425431970,-253.37999998,0.00015,2]
[356912187,1743425432019,-564.44188913,0.00015,2]
[356912188,1743425432030,-821.26328869,0.00015,2]
[356912189,1743425432041,-7028.16035397,0.00015,2]
[356912190,1743425432053,-959.98764281,0.00015,2]
[356912191,1743425432065,-4161.3714636,0.00015,2]
[356912192,1743425432076,-4550.8668448,0.00015,2]
[356912193,1743425432087,-838.87622963,0.00015,2]
[356912194,1743425432098,-1072.65758095,0.00015,2]
[356912195,1743425432155,-1990.84504148,0.00015,2]
[356912196,1743425432266,-687.58254448,0.00015,2]
[356912236,1743425437814,-390.50950038,0.00015,2]
[356912237,1743425437825,-326527.55973727,0.00015,2]
[356912238,1743425437837,-437.795,0.00015,2]
[356912239,1743425437886,-98.85326422,0.00015,2]
[356912264,1743425441150,-251.06837505,0.00015,2]
[356912265,1743425441162,-419.66376033,0.00015,2]
[356912266,1743425441274,-0.00465762,0.00015,2]
[356912267,1743425441285,-1209.22953705,0.00015,2]
[356912268,1743425441297,-662.52037336,0.00015,2]
[356912269,1743425441309,-43826.79245196,0.00015,2]
[356912270,1743425441320,-1781.137005,0.00015,2]
[356912271,1743425441333,-1363.68834929,0.00015,2]
[356912272,1743425441345,-4592.27815191,0.00015,2]
[356912273,1743425441356,-1516.91232355,0.00015,2]
[356912274,1743425441367,-8456.29292692,0.00015,2]
[356912275,1743425441379,-223763.93558707,0.00015,2]
[356912282,1743425441551,-805.42637062,0.00015,2]
[356912289,1743425441616,-17806.1407884,0.00015,2]
[356912290,1743425441657,-203347.61159125,0.00015,2]
[356912307,1743425443018,-150.0,0.00015462,2]
[356912309,1743425443027,-929.5654834,0.00015925,2]
[356912336,1743425444363,-1907.4700262,0.00015925,2]
[356912337,1743425444374,-174.31101494,0.00015925,2]
[356912338,1743425444383,-180.70391038,0.00016225,2]
[356912339,1743425444399,-350.0,0.00016348,12]
[356912340,1743425444409,-350.0,0.00016348,12]
[356912341,1743425444419,-150.0,0.00016364,2]
[356912342,1743425444429,-150.0,0.000165,2]
[356912343,1743425444438,-228.79757065,0.00019,2]
[356912344,1743425444447,-216.86158991,0.00019,2]
[356912345,1743425444457,-167.42,0.000196,2]
[356912346,1743425444468,-2837.03550951,0.00019728,2]
[356912347,1743425444478,-250.0,0.00019762,2]
[356912348,1743425444489,-200.0,0.00019816,2]
[356912349,1743425444499,-151.38,0.0002,2]
[356912350,1743425444509,-153.95,0.00020779,2]
[356912351,1743425444519,-151.16,0.00021325,2]
[356912352,1743425444530,-1000.0,0.00021671,2]
[356912353,1743425444703,-500.0,0.00023041,2]
[356912354,1743425444713,-153.95,0.00023377,2]
[356912355,1743425444724,-2837.03550951,0.00023532,2]
[356912356,1743425444734,-23900.0,0.00023992,2]
[356912357,1743425444745,-1000.0,0.00024379,2]
[356912358,1743425444755,-1228.23,0.00024649,2]
[356912359,1743425444765,-661.74,0.00024769,2]
[356912360,1743425444776,-405.0,0.00024932,2]
[356912361,1743425444785,-153.95,0.00025974,2]
[356912362,1743425444796,-150.0,0.00026548,2]
[356912363,1743425444806,-170.2,0.000268,2]
[356912364,1743425444818,-8.28,0.00026849,2]
[356912365,1743425444828,-163.21,0.00026849,2]
[356912366,1743425444838,-1228.23,0.00026913,2]
[356912367,1743425444848,-237.2359376,0.00027088,2]
[356912368,1743425444860,-762.7640624,0.00027088,2]
[356912369,1743425444870,-30.40796365,0.00027335,2]
[356912384,1743425445934,-1177.81395941,0.00027335,2]
[356912385,1743425445946,-456.951078,0.00027335,2]
[356912386,1743425446158,-1171.86250845,0.00027335,2]
[356912387,1743425446168,-735.44328847,0.000274,2]
[356912388,1743425446179,-150.0,0.00028,60]
[356912389,1743425446189,-153.95,0.00028572,2]
[356912390,1743425446200,-1228.23,0.00029177,2]
[356912391,1743425446209,-167.42,0.00029401,2]
[356912392,1743425446220,-300.0,0.00029552,2]
[356912393,1743425446229,-192.6,0.00029596,2]
[356912394,1743425446239,-1000.0,0.00029797,2]
[356912395,1743425446249,-2273.14,0.00029919,2]
[356912396,1743425446258,-243.88,0.00029919,120]
[356912397,1743425446268,-2000.0,0.00030512,120]
[356912398,1743425446277,-186.42,0.000307,2]
[356912399,1743425446287,-2837.03550951,0.00031138,2]
[356912400,1743425446296,-153.95,0.00031169,2]
[356912401,1743425446307,-200.0,0.00031313,2]
[356912402,1743425446316,-1228.23,0.00031441,2]
[356912403,1743425446328,-716.67,0.00032188,120]
[356912404,1743425446337,-1000.0,0.00032506,2]
[356912406,1743425446348,-347.74195246,0.00032535,4]
[356912408,1743425446357,-157.78,0.00032932,120]
[356912410,1743425446366,-136.16642185,0.00033705,2]
[356912412,1743425446378,-1092.06357815,0.00033705,2]
[356912414,1743425446392,-579.19877762,0.00034942,2]
[356912416,1743425446408,-600.75,0.00034942,2]
[356912447,1743425866876,1085.06574534,0.00033534,30]
[356912448,1743425872337,204.0,0.00033534,120]
[356912449,1743425874501,984.62,0.00033534,60]
[356912450,1743425953676,598.85534402,0.00033534,60]
[356912451,1743426003125,2042.24542551,0.0003353,120]
[356912452,1743426003195,1656.85958334,0.0003353,120]
[356912453,1743426003551,1022.10536575,0.0003353,30]
[356912454,1743426006864,160.27,0.0003353,30]
[356912455,1743426163174,150.0,0.0003353,30]
[356912456,1743426190152,1000.0,0.0003353,120]
[356912457,1743426197045,154.46204851,0.0003353,120]
[356912458,1743426208997,1000.0,0.0003353,120]
[356912459,1743426221646,1185.32269672,0.0003353,120]
[356912460,1743426241961,1000.0,0.0003353,120]
[356912461,1743426259516,1000.0,0.0003353,120]
[356912462,1743426268353,1000.0,0.0003353,120]
[356912463,1743426302739,1000.0,0.0003353,119]
[356912464,1743426317163,1000.0,0.0003353,119]
[356912465,1743426340238,1000.0,0.0003353,119]
[356912466,1743426371606,1000.0,0.0003353,119]
[356912467,1743426403483,1000.0,0.0003353,119]
[356912468,1743426412465,1000.0,0.0003353,119]
[356912469,1743426427887,1000.0,0.0003353,119]
[356912470,1743426455751,1000.0,0.0003353,118]
[356912471,1743426462147,1000.0,0.0003353,118]
[356912472,1743426477579,1000.0,0.0003353,118]
[356912473,1743426487746,1000.0,0.0003353,120]
[356912474,1743426488014,1023.68904861,0.0003353,120]
[356912475,1743426492791,1000.0,0.0003353,117]
[356912503,1743426613551,1000.0,0.0003353,115]
[356912504,1743426624474,1000.0,0.0003353,115]
[356912513,1743426632129,-250.0,0.00025,2]
[356912514,1743426632139,-350.0,0.00025875,12]
[356912515,1743426632149,-150.0,0.00025875,2]
[356912516,1743426632158,-300.46334427,0.00026585,12]
[356912517,1743426632170,-49.53665573,0.00026585,12]
[356912518,1743426632179,-150.0,0.00026585,2]
[356912519,1743426632189,-258.7591093,0.00026749,2]
[356912520,1743426632199,-220.89472112,0.00026749,2]
[356912521,1743426632208,-150.64,0.00026849,2]
[356912522,1743426632217,-300.0,0.00027,2]
[356912523,1743426632227,-150.0,0.00027326,5]
[356912524,1743426632236,-244.82299991,0.00027326,5]
[356912525,1743426632245,-350.0,0.000275,12]
[356912526,1743426632255,-80.24892683,0.000275,2]
[356912527,1743426632360,-69.75107317,0.000275,2]
[356912528,1743426632369,-215.26577679,0.00027877,2]
[356912529,1743426632381,-43.49333251,0.00027877,2]
[356912530,1743426632391,-184.9152568,0.00028042,2]
[356912531,1743426632400,-350.0,0.00029,2]
[356912532,1743426632411,-258.7591093,0.00029004,2]
[356912533,1743426632424,-644.62,0.00029103,2]
[356912534,1743426632433,-150.0,0.00029103,2]
[356912535,1743426632442,-209.21078185,0.00029103,2]
[356912536,1743426632452,-331.33,0.00029104,2]
[356912537,1743426632461,-999.99,0.00029104,2]
[356912538,1743426632471,-150.99,0.00029104,2]
[356912539,1743426632481,-3295.72,0.00029104,2]
[356912541,1743426632490,-23.29453723,0.00029104,2]
[356912542,1743426632512,-127.69546277,0.00029104,2]
[356912543,1743426632524,-299.99,0.00029104,12]
[356912544,1743426632534,-354.72661298,0.00029104,2]
[356912547,1743426632561,-3777.19374894,0.00029104,2]
[356912549,1743426632572,-1123.36114499,0.00029104,2]
[356912551,1743426632583,-1735.68890886,0.00029104,2]
[356912553,1743426632594,-592.36206145,0.00029104,2]
[356912557,1743426632620,-2416.65752278,0.00029104,2]
[356912559,1743426632630,-159.56,0.00029104,2]
[356912561,1743426632639,-10701.21614697,0.00029104,10]
[356912563,1743426632650,-1838.45085366,0.00029104,10]
[356912565,1743426632661,-4789.1282684,0.00029104,10]
[356912569,1743426632689,-2799.918605,0.00029104,10]
[356912570,1743426632705,-475.47500001,0.00029104,10]
[356912571,1743426632716,-14521.74112596,0.00029104,10]
[356912573,1743426632725,-499.99,0.00029104,2]
[356912575,1743426632734,-9999.99,0.00029104,2]
[356912577,1743426632745,-177.18,0.00030858,2]
[356912579,1743426632754,-400.0,0.00031,2]
[356912581,1743426632764,-159.0,0.00031396,3]
[356912583,1743426632774,-450.0,0.00033,2]
[356912585,1743426632784,-5000.0,0.00033387,2]
[356912588,1743426632797,-200.0,0.0003349,30]
[356912590,1743426632807,-437.75562445,0.00033806,2]
[356912592,1743426632816,-151.0,0.00034579,2]
[356912594,1743426632826,-1105.7498812,0.000346,2]
[356912595,1743426632835,-293.28,0.00034704,2]
[356912596,1743426632844,-150.64,0.00034716,2]
[356912598,1743426632853,-335.0,0.00034942,2]
[356912599,1743426632863,-183.86879,0.00034942,56]
[356912601,1743426632872,-500.0,0.00035,2]
[356912603,1743426632881,-156.587,0.00035127,2]
[356912605,1743426632891,-203.88,0.000352,2]
[356912607,1743426632900,-2000.0,0.0003524,120]
[356912609,1743426632909,-200.0,0.00035482,2]
[356912611,1743426632919,-150.0,0.00035499,7]
[356912613,1743426632928,-183.86879,0.0003567,57]
[356912615,1743426632938,-162.380719,0.00035675,2]
[356912617,1743426632947,-151.0,0.00035947,2]
[356912620,1743426632960,-1239.335,0.00035968,43]
[356912622,1743426632969,-192.022,0.00035968,43]
[356912624,1743426632979,-366.15095316,0.00036,7]
[356912625,1743426632988,-716.67,0.00036211,120]
[356912627,1743426632997,-168.3888056,0.00036223,2]
[356912628,1743426633007,-339.67,0.0003628,3]
[356912629,1743426633016,-173.05,0.00036298,2]
[356912631,1743426633026,-190.41,0.00036298,2]
[356912633,1743426633035,-162.94,0.00036359,2]
[356912635,1743426633045,-1060.46,0.00036384,2]
[356912636,1743426633058,-200.0,0.00036397,2]
[356912637,1743426633069,-1136.57,0.00036448,2]
[356912638,1743426633079,-1000.0,0.00036458,2]
[356912639,1743426633089,-174.61919141,0.00036771,2]
[356912640,1743426633098,-341.91,0.00036858,2]
[356912641,1743426633108,-183.86879,0.0003692,60]
[356912642,1743426633118,-1071.65,0.00037058,2]
[356912643,1743426633127,-156.587,0.00037316,2]
[356912644,1743426633138,-181.08010149,0.00037319,2]
[356912645,1743426633148,-500.0,0.00037543,5]
[356912646,1743426633158,-500.0,0.00037543,5]
[356912647,1743426633168,-187.78006525,0.00037867,2]
[356912648,1743426633179,-154.46204851,0.00038,120]
[356912649,1743426633188,-500.0,0.00038356,15]
[356912650,1743426633198,-500.0,0.00038356,15]
[356912651,1743426633208,-500.0,0.00038356,15]
[356912652,1743426633217,-500.0,0.00038356,15]
[356912653,1743426633227,-500.0,0.00038356,15]
[356912654,1743426633236,-500.0,0.00038356,15]
[356912655,1743426633246,-500.0,0.00038356,15]
[356912656,1743426633255,-500.0,0.00038356,15]
[356912657,1743426633265,-500.0,0.00038356,15]
[356912658,1743426633274,-500.0,0.00038356,15]
[356912659,1743426633283,-500.0,0.00038356,15]
[356912660,1743426633293,-500.0,0.00038356,15]
[356912661,1743426633302,-500.0,0.00038356,15]
[356912662,1743426633312,-194.72792766,0.00038415,2]
[356912663,1743426633321,-23668.5122044,0.00038458,2]
[356912664,1743426633334,-231.4877956,0.00038458,2]
[356912665,1743426633343,-162.380719,0.00038685,2]
[356912666,1743426633352,-201.93286099,0.00038963,2]
[356912667,1743426633362,-1071.65,0.00039322,2]
[356912668,1743426633372,-855.49,0.00039421,2]
[356912669,1743426633383,-855.49,0.00039483,2]
[356912670,1743426633393,-120.32182944,0.00039511,2]
[356912671,1743426633425,-500.0,0.00038356,15]
[356912672,1743426633435,-139.900128,0.00038356,15]
[356912681,1743426638034,-360.099872,0.00038356,15]
[356912683,1743426638044,-52.265128,0.00038356,15]
[356912685,1743426638056,-447.734872,0.00038356,15]
[356912687,1743426638067,-500.0,0.00038356,15]
[356912688,1743426638076,-500.0,0.00038356,15]
[356912689,1743426638086,-500.0,0.00038356,15]
[356912690,1743426638095,-500.0,0.00038356,15]
[356912691,1743426638104,-500.0,0.00038356,15]
[356912692,1743426638114,-500.0,0.00038356,15]
[356912693,1743426638123,-340.062228,0.00038356,15]
[356912694,1743426638135,-159.937772,0.00038356,15]
[356912695,1743426638144,-500.0,0.00038356,15]
[356912696,1743426638154,-500.0,0.00038356,15]
[356912697,1743426638163,-500.0,0.00038356,15]
[356912698,1743426638172,-500.0,0.00038356,15]
[356912699,1743426638181,-500.0,0.00038356,15]
[356912700,1743426638191,-500.0,0.00038356,15]
[356912701,1743426638200,-500.0,0.00038356,15]
[356912702,1743426638210,-500.0,0.00038356,15]
[356912703,1743426638219,-500.0,0.00038356,15]
[356912704,1743426638228,-500.0,0.00038356,15]
[356912705,1743426638238,-500.0,0.00038356,15]
[356912706,1743426638247,-500.0,0.00038356,15]
[356912707,1743426638256,-500.0,0.00038356,15]
[356912708,1743426638265,-500.0,0.00038356,15]
[356912709,1743426638274,-89.0825474,0.00039511,2]
[356912710,1743426638284,-855.49,0.00039545,2]
[356912711,1743426638293,-855.49,0.00039607,2]
[356912712,1743426638303,-855.49,0.0003967,2]
[356912713,1743426638312,-525.9346806,0.00039732,2]
[356912714,1743426638327,-329.5553194,0.00039732,2]
[356912715,1743426638337,-855.49,0.00039794,2]
[356912716,1743426638346,-855.49,0.00039856,2]
[356912717,1743426638355,-705.0125993,0.000399,15]
[356912718,1743426638365,-855.49,0.00039919,2]
[356912719,1743426638375,-855.49,0.00039981,2]
[356912720,1743426638384,-47.35665718,0.00039999,31]
[356912721,1743426638396,-200.67329382,0.00039999,31]
[356912722,1743426638406,-223.97204404,0.00039999,31]
[356912723,1743426638418,-20.63013127,0.00039999,31]
[356912724,1743426638427,-1575.6964387,0.0004,3]
[356912725,1743426638438,-334.47,0.0004,3]
[356912726,1743426638450,-308.79695917,0.0004,3]
[356912727,1743426638465,-417.59,0.0004,3]
[356912728,1743426638476,-477.07403386,0.0004,3]
[356912729,1743426638487,-1973.77812,0.0004,3]
[356912730,1743426638498,-2035.765428,0.0004,3]
[356912731,1743426638509,-2172.528378,0.0004,3]
[356912732,1743426638520,-2052.2052,0.0004,3]
[356912734,1743426638531,-2063.57616,0.0004,3]
[356912748,1743426640264,-466.21765709,0.0004,3]
[356912749,1743426640275,-3191.39276772,0.0004,3]
[356912750,1743426640429,-631.56256891,0.0004,3]
[356912751,1743426640441,-2101.9,0.0004,3]
[356912752,1743426640645,-3881.3775,0.0004,3]
[356912753,1743426640657,-1882.6086331,0.0004,3]
[356912789,1743426643324,-2611.85179444,0.0004,3]
[356912795,1743426644823,-21944.67987375,0.0004,3]
[356912796,1743426644833,-154.46204851,0.0004,120]
[356912797,1743426644843,-855.49,0.00040043,2]
[356912798,1743426644853,-168.3888056,0.00040054,2]
[356912799,1743426644862,-217.15233878,0.00040059,2]
[356912800,1743426644872,-855.49,0.00040105,2]
[356912801,1743426644881,-855.49,0.00040167,2]
[356912802,1743426644891,-855.49,0.0004023,2]
[356912803,1743426644901,-716.67,0.00040235,120]
[356912804,1743426644910,-855.49,0.00040292,2]
[356912805,1743426644920,-1614.19,0.0004035,120]
[356912806,1743426644930,-855.49,0.00040354,2]
[356912807,1743426644939,-855.49,0.00040416,2]
[356912808,1743426644949,-150.0,0.00040444,2]
[356912809,1743426644963,-154.6,0.00040461,2]
[356912810,1743426644973,-855.49,0.00040479,2]
[356912811,1743426644983,-855.49,0.00040541,2]
[356912812,1743426644993,-855.49,0.00040603,2]
[356912813,1743426645003,-225.18697532,0.00040607,2]
[356912814,1743426645013,-223.9,0.00040646,2]
[356912815,1743426645023,-200.0,0.00040897,2]
[356912816,1743426645032,-157.78,0.00040952,120]
[356912817,1743426645042,-1000.0,0.00041016,2]
[356912818,1743426645052,-184.18,0.00041049,2]
[356912819,1743426645061,-705.01259921,0.00041055,15]
[356912820,1743426645073,-233.51889341,0.00041155,2]
[356912821,1743426645082,-174.61919141,0.00041423,2]
[356912822,1743426645092,-1071.65,0.00041586,2]
[356912823,1743426645102,-242.15909246,0.00041703,2]
[356912824,1743426645112,-166.69,0.00041819,2]
[356912825,1743426645122,-174.63,0.000421,2]
[356912826,1743426645131,-705.01259921,0.00042211,15]
[356912827,1743426645141,-251.11897888,0.00042251,2]
[356912828,1743426645151,-150.64,0.00042583,2]
[356912829,1743426645160,-181.08010149,0.00042792,2]
[356912830,1743426645170,-260.4103811,0.00042799,2]
[356912831,1743426645179,-308.92409703,0.00043,120]
[356912832,1743426645189,-1000.0,0.00043022,10]
[356912833,1743426645307,-179.63196785,0.00043347,2]
[356912834,1743426645320,-90.41359735,0.00043347,2]
[356912835,1743426645329,-705.01259921,0.00043366,15]
[356912836,1743426645338,-395.28794812,0.0004348,30]
[356912837,1743426645348,-1071.65,0.0004385,2]
[356912838,1743426645357,-280.03725112,0.00043895,2]
[356912839,1743426645366,-963.29,0.00044,2]
[356912840,1743426645375,-576.01,0.00044,2]
[356912841,1743426645385,-1745.87212176,0.00044,30]
[356912842,1743426645394,-187.78006525,0.00044161,2]
[356912843,1743426645404,-716.67,0.00044258,120]
[356912844,1743426645414,-290.39862941,0.00044443,2]
[356912845,1743426645423,-705.01259921,0.00044521,15]
[356912846,1743426645432,-453.0,0.00044991,2]
[356912847,1743426645443,-1232.0,0.00045,7]
[356912848,1743426645452,-1000.0,0.000453,7]
[356912849,1743426645463,-194.72792766,0.0004553,2]
[356912850,1743426645472,-601.39084047,0.00045533,120]
[356912851,1743426645482,-1000.0,0.00045573,2]
[356912852,1743426645491,-705.01259921,0.00045677,15]
[356912853,1743426645501,-386.15512129,0.00046,120]
[356912854,1743426645510,-1071.65,0.00046114,2]
[356912855,1743426645520,-177.18,0.00046287,2]
[356912856,1743426645530,-385.31146122,0.00046475,18]
[356912857,1743426645539,-167.39489528,0.00046475,28]
[356912858,1743426645549,-500.0,0.00046475,2]
[356912859,1743426645558,-659.2632,0.00046475,2]
[356912860,1743426645567,-25010.47914344,0.00046475,2]
[356912861,1743426645579,-443.04746471,0.00046475,2]
[356912862,1743426645601,-2957.96454071,0.00046475,2]
[356912863,1743426645613,-7591.46855114,0.00046475,2]
[356912864,1743426645623,-1000.0,0.00046475,2]
[356912865,1743426645632,-1825.9454,0.00046475,2]
[356912866,1743426645641,-228.7171,0.00046475,2]
[356912867,1743426645651,-2298.1959,0.00046475,120]
[356912868,1743426645660,-3162.5215314,0.00046559,4]
[356912869,1743426645670,-97506.1155168,0.00046565,3]
[356912870,1743426645680,-151.37,0.00046565,2]
[356912871,1743426645689,-5735.65385393,0.00046566,3]
[356912872,1743426645701,-500.0,0.00046575,120]
[356912873,1743426645711,-516.50562819,0.00046575,120]
[356912874,1743426645721,-195.47305267,0.00046575,120]
[356912875,1743426645730,-500.0,0.00046575,120]
[356912876,1743426645740,-500.0,0.00046575,120]
[356912877,1743426645749,-500.0,0.00046575,120]